Workbook

Sheet Lista de Tabelas

Sheet 1. Histórico de Produção
B2: 1. HISTÓRICO DA PRODUÇÃO NACIONAL
B6: Tabela 1. Histórico de Produção de Petróleo – Óleo e Condensado (Mbbl/d)
C8: 12/2016 | D8: 01/2017 | E8: 02/2017 | F8: 03/2017 | G8: 04/2017 | H8: 05/2017 | I8: 06/2017 | J8: 07/2017 | K8: 08/2017 | L8: 09/2017 | M8: 10/2017 | N8: 11/2017 | O8: 12/2017
B9: Óleo | C9: 2713.005064 | D9: 2669.602597 | E9: 2658.564168 | F9: 2533.194635 | G9: 2522.363234 | H9: 2637.438696 | I9: 2659.871494 | J9: 2608.617617 | K9: 2559.986072 | L9: 2636.322894 | M9: 2611.378162 | N9: 2580.122926 | O9: 2597.38126
B10: Condensado | C10: 16.83686693 | D10: 16.95859086 | E10: 16.93628201 | F10: 16.77215602 | G10: 16.6083469 | H10: 15.83565485 | I10: 14.8980182 | J10: 14.24561439 | K10: 16.07766147 | L10: 16.26842583 | M10: 16.04913859 | N10: 14.52041587 | O10: 14.99073508
B11: Petróleo | C11: 2729.84193 | D11: 2686.561188 | E11: 2675.50045 | F11: 2549.966791 | G11: 2538.971581 | H11: 2653.274351 | I11: 2674.769512 | J11: 2622.863231 | K11: 2576.063733 | L11: 2652.59132 | M11: 2627.427301 | N11: 2594.643342 | O11: 2612.371995
B14: Tabela 2. Histórico de Produção de Gás Natural – GASA e GASN (MMm³/d)
C16: 12/2016 | D16: 01/2017 | E16: 02/2017 | F16: 03/2017 | G16: 04/2017 | H16: 05/2017 | I16: 06/2017 | J16: 07/2017 | K16: 08/2017 | L16: 09/2017 | M16: 10/2017 | N16: 11/2017 | O16: 12/2017
B17: GASA | C17: 87.49554574 | D17: 87.13712874 | E17: 86.18365474 | F17: 80.95841335 | G17: 80.96537722 | H17: 83.58471687 | I17: 87.3234836 | J17: 86.69900772 | K17: 83.66103375 | L17: 86.82787454 | M17: 85.55876672 | N17: 84.97001551 | O17: 84.23499606
B18: GASN | C18: 24.27672971 | D18: 22.80257782 | E18: 20.4551476 | F18: 20.38736208 | G18: 21.61568431 | H18: 21.19573938 | I18: 23.81047002 | J18: 28.30700237 | K18: 28.17901438 | L18: 27.17850759 | M18: 29.04530482 | N18: 28.44006587 | O18: 29.13769891
B19: Gás Total | C19: 111.7722754 | D19: 109.9397066 | E19: 106.6388023 | F19: 101.3457754 | G19: 102.5810615 | H19: 104.7804563 | I19: 111.1339536 | J19: 115.0060101 | K19: 111.8400481 | L19: 114.0063821 | M19: 114.6040715 | N19: 113.4100814 | O19: 113.372695
B22: Tabela 3. Histórico de Produção de Petróleo e Gás Natural (Mboe/d)
C24: 12/2016 | D24: 01/2017 | E24: 02/2017 | F24: 03/2017 | G24: 04/2017 | H24: 05/2017 | I24: 06/2017 | J24: 07/2017 | K24: 08/2017 | L24: 09/2017 | M24: 10/2017 | N24: 11/2017 | O24: 12/2017
B25: Petróleo | C25: =C11 -> 2729.84193 | D25: =D11 -> 2686.561188 | E25: 2675.50045 | F25: 2549.966791 | G25: 2538.971581 | H25: 2653.274351 | I25: 2674.769512 | J25: 2622.863231 | K25: 2576.063733 | L25: 2652.59132 | M25: 2627.427301 | N25: 2594.643342 | O25: 2612.371995
B26: Gás Natural | C26: =C19*6.28981 -> 703.0263758 | D26: =D19*6.28981 -> 691.4998657 | E26: 670.7378053 | F26: 637.4456718 | G26: 645.2153866 | H26: 659.0491615 | I26: 699.0114528 | J26: 723.3659524 | K26: 703.4526531 | L26: 717.0784824 | M26: 720.8378353 | N26: 713.3278639 | O26: 713.0927105
B27: Produção Total | C27: =SUM(C25:C26) -> 3432.868306 | D27: =SUM(D25:D26) -> 3378.061054 | E27: 3346.238256 | F27: 3187.412463 | G27: 3184.186968 | H27: 3312.323512 | I27: 3373.780965 | J27: 3346.229183 | K27: 3279.516386 | L27: 3369.669802 | M27: 3348.265136 | N27: 3307.971206 | O27: 3325.464706

Sheet 2. Dados de Produção
B2: 2. DADOS DA PRODUÇÃO
B6: Tabela 4. Distribuição da Produção de Petróleo e Gás Natural por Estado
B8: Estado | C8: Petróleo (bbl/d) | D8: Gás Natural (Mm³/d) | E8: Produção Total (boe/d) | F8: Nº Campos Produtores
B9: Rio de Janeiro | C9: 1764854.207 | D9: 51655.13298 | E9: 2089755.179 | F9: 41
B10: São Paulo | C10: 348033.0321 | D10: 19662.355 | E10: 471705.5092 | F10: 6
B11: Espírito Santo | C11: 375642.8135 | D11: 10253.24104 | E11: 440133.7515 | F11: 51
B12: Amazonas | C12: 19028.67987 | D12: 11698.07943 | E12: 92607.37684 | F12: 7
B13: Bahia | C13: 31323.92086 | D13: 8080.48421 | E13: 82148.63125 | F13: 82
B14: Rio Grande do Norte | C14: 43152.39254 | D14: =991.416387419354+10.90339 -> 1002.319777 | E14: =49388.2132439262+68.5802514559 -> 49456.7935 | F14: =76+1 -> 77
B15: Maranhão | C15: 70.53535774 | D15: 7616.588142 | E15: 47977.42762 | F15: 5
B16: Sergipe | C16: 22315.53031 | D16: 2491.542215 | E16: 37986.85745 | F16: 20
B17: Alagoas | C17: 2832.049498 | D17: 825.7020729 | E17: 8025.558653 | F17: 11
B18: Ceará | C18: 5118.833638 | D18: 87.25010742 | E18: 5667.620236 | F18: 6
B19: Total Geral | C19: 2612371.995 | D19: 113372.695 | E19: 3325464.706 | F19: 306
B22: Tabela 5. Distribuição da Produção de Petróleo e Gás Natural por Bacia
B24: Bacia | C24: Petróleo (bbl/d) | D24: Gás Natural (Mm³/d) | E24: Produção Total (boe/d) | F24: Nº Campos Produtores
B25: Santos | C25: 1175620.093 | D25: 54554.81536 | E25: 1518759.516 | F25: 10
B26: Campos | C26: 1275491.803 | D26: 24515.46065 | E26: 1429689.393 | F26: 45
B27: Solimões | C27: 19028.67987 | D27: 11698.07943 | E27: 92607.37684 | F27: 7
B28: Espírito Santo | C28: 37418.15702 | D28: 2500.453007 | E28: 53145.53135 | F28: 43
B29: Potiguar | C29: 44332.05391 | D29: 1003.256643 | E29: 50642.34757 | F29: 79
B30: Parnaíba | C30: 70.53535774 | D30: 7616.588142 | E30: 47977.42762 | F30: 5
B31: Recôncavo | C31: 30861.20024 | D31: 2167.335056 | E31: 44493.32595 | F31: 77
B32: Sergipe | C32: 22315.53031 | D32: 2491.542215 | E32: 37986.85745 | F32: 20
B33: Camamu | C33: 460.0241238 | D33: 5876.631783 | E33: 37422.92148 | F33: 1
B34: Alagoas | C34: 2832.049498 | D34: 825.7020729 | E34: 8025.558653 | F34: 11
B35: Ceará | C35: 3939.172265 | D35: 86.31324194 | E35: 4482.066157 | F35: 4
B36: Tucano Sul | C36: 2.696502416 | D36: 36.51737032 | E36: 232.3838234 | F36: 4
B37: Total Geral | C37: 2612371.995 | D37: 113372.695 | E37: 3325464.706 | F37: 306
B40: Tabela 6. Distribuição da Produção de Petróleo e Gás Natural por Operador
B42: Nº | C42: Operador | D42: Petróleo (bbl/d) | E42: Gás Natural (Mm³/d) | F42: Produção Total (boe/d)
B43: 1 | C43: Petrobras | D43: 2457974.923 | E43: 104719.9788 | F43: 3116643.692
B44: 2 | C44: Statoil Brasil O&G | D44: 63236.58308 | E44: 109.2235484 | F44: 63923.57845
B45: 3 | C45: Shell Brasil | D45: 56703.22128 | E45: 569.4637858 | F45: 60285.0403
B46: 4 | C46: Parnaíba Gás Natural | D46: 70.53535774 | E46: 7616.588142 | F46: 47977.42762
B47: 5 | C47: Chevron Frade | D47: 17248.94364 | E47: 226.742 | F47: 18675.10774
B48: 6 | C48: PetroRio O&G | D48: 6899.376183 | E48: 22.05679806 | F48: 7038.109252
B49: 7 | C49: Dommo Energia | D49: 5582.484352 | E49: 15.26122839 | F49: 5678.474579
B50: 8 | C50: Maha Energy | D50: 1273.805715 | E50: 39.89433935 | F50: 1524.733529
B51: 9 | C51: SHB | D51: 1394.309985 | E51: 12.76834613 | F51: 1474.620456
B52: 10 | C52: Petrosynergy | D52: 436.8419719 | E52: 6.018530645 | F52: 474.6973862
B53: 11 | C53: Nova Petróleo Rec | D53: 389.2109898 | E53: 5.959303871 | F53: 426.6938789
B54: 12 | C54: Partex Brasil | D54: 328.6324276 | E54: 0.4702354839 | F54: 331.5901195
B55: 13 | C55: UP Petróleo | D55: 275.7635251 | E55: 4.301274194 | F55: 302.8177225
B56: 14 | C56: Petrogal Brasil | D56: 166.5493541 | E56: 3.500900323 | F56: 188.5693519
B57: 15 | C57: Imetame | D57: 138.8370051 | E57: 4.260035806 | F57: 165.6318209
B58: 16 | C58: Recôncavo E&P | D58: 99.54273596 | E58: 1.80063 | F58: 110.8683565
B59: 17 | C59: Phoenix | D59: 17.29373115 | E59: 11.72015742 | F59: 91.01129448
B60: 18 | C60: Santana | D60: 33.65468347 | E60: 1.388577419 | F60: 42.38857161
B61: 19 | C61: Perícia | D61: 25.69285936 | E61: 0.08169677419 | F61: 26.20671655
B62: 20 | C62: IPI | D62: 20.58391047 | E62: 0.6676193548 | F62: 24.78310936
B63: 21 | C63: Alvopetro | D63: 13.01726904 | E63: 0.1556735484 | F63: 13.99642608
B64: 22 | C64: EPG Brasil | D64: 11.31962903 | E64: 0.3213129032 | F64: 13.34062614
B65: 23 | C65: Guto & Cacal | D65: 12.68106855 | E65: 0.04032258065 | F65: 12.93468992
B66: 24 | C66: Vipetro | D66: 9.748627243 | E66: 0.02344677419 | F66: 9.896102998
B67: 25 | C67: Central Resources | D67: 6.868066726 | E67: 0.005806451613 | F67: 6.904588203
B68: 26 | C68: Leros | D68: 1.574684368 | E68: 0.002503548387 | F68: 1.590431212
B69: Total Geral | D69: 2612371.995 | E69: 113372.695 | F69: 3325464.706
B72: Tabela 7. Distribuição da Produção de Petróleo e Gás Natural por Concessionário
B74: Nº | C74: Concessionário | D74: Petróleo (bbl/d) | E74: Gás Natural (Mm³/d) | F74: Produção Total (boe/d)
B75: 1 | C75: Petrobras | D75: 2004259.178 | E75: 82579.4367 | F75: 2523668.145
B76: 2 | C76: Shell Brasil | D76: 326124.3357 | E76: 12114.64176 | F76: 402323.1306
B77: 3 | C77: Petrogal Brasil | D77: 80510.99726 | E77: 3385.4338 | F77: 101804.7326
B78: 4 | C78: Repsol Sinopec | D78: 80603.53611 | E78: 2895.4714 | F78: 98815.50107
B79: 5 | C79: Parnaíba Gás Natural | D79: 70.5353 | E79: 7616.5881 | F79: 47977.4273
B80: 6 | C80: Statoil Brasil O&G | D80: 37941.94986 | E80: 65.5341 | F80: 38354.1469
B81: 7 | C81: Sinochem Petróleo | D81: 25294.63324 | E81: 43.6894 | F81: 25569.43127
B82: 8 | C82: Queiroz Galvão | D82: 207.010845 | E82: 2644.48431 | F82: 16840.3147
B83: 9 | C83: ONGC Campos | D83: 12635.80925 | E83: 115.275798 | F83: 13360.87211
B84: 10 | C84: QPI Brasil | D84: 10763.83751 | E84: 98.197902 | F84: 11381.48365
B85: 11 | C85: Chevron Frade | D85: 8924.603419 | E85: 117.3163108 | F85: 9662.500723
B86: 12 | C86: PetroRio O&G | D86: 6899.3762 | E86: 22.0568 | F86: 7038.109281
B87: 13 | C87: Dommo Energia | D87: 5582.4844 | E87: 15.2612 | F87: 5678.474448
B88: 14 | C88: Brasoil Manati | D88: 46.00241 | E88: 587.66318 | F88: 3742.292156
B89: 15 | C89: Geopark Brasil | D89: 46.00241 | E89: 587.66318 | F89: 3742.292156
B90: 16 | C90: Frade | D90: 3149.657101 | E90: 41.4030892 | F90: 3410.074666
B91: 17 | C91: Total E&P do Brasil | D91: 2139.65496 | E91: 134.0584 | F91: 2982.856825
B92: 18 | C92: Chevron Brasil | D92: 1603.187063 | E92: 4.0654125 | F92: 1628.757735
B93: 19 | C93: Maha Energy | D93: 1273.8057 | E93: 39.8943 | F93: 1524.733267
B94: 20 | C94: CNOOC Petroleum | D94: 1069.82748 | E94: 67.0292 | F94: 1491.428412
B95: 21 | C95: CNODC Brasil | D95: 1069.82748 | E95: 67.0292 | F95: 1491.428412
B96: 22 | C96: OP Pescada | D96: 132.24295 | E96: 88.071235 | F96: 686.1942846
B97: 23 | C97: Petrosynergy | D97: 436.8419 | E97: 6.0185 | F97: 474.6971215
B98: 24 | C98: SHB | D98: 422.468525 | E98: 6.329745 | F98: 462.2814184
B99: 25 | C99: Nova Petróleo Rec | D99: 389.211 | E99: 5.9593 | F99: 426.6938647
B100: 26 | C100: Partex Brasil | D100: 164.3162 | E100: 0.2351 | F100: 165.7949343
B101: 27 | C101: Imetame | D101: 138.837 | E101: 4.26 | F101: 165.6315906
B102: 28 | C102: Petro Vista | D102: 103.4113125 | E102: 1.6129875 | F102: 113.5566974
B103: 29 | C103: Recôncavo E&P | D103: 99.5427 | E103: 1.8007 | F103: 110.8687609
B104: 30 | C104: Phoenix | D104: 17.2937 | E104: 11.7202 | F104: 91.01153116
B105: 31 | C105: UP Petróleo | D105: 82.72905 | E105: 1.29039 | F105: 90.84535793
B106: 32 | C106: Santana | D106: 33.6547 | E106: 1.3886 | F106: 42.38873017
B107: 33 | C107: Perícia | D107: 25.6929 | E107: 0.0817 | F107: 26.20677748
B108: 34 | C108: IPI | D108: 20.5839 | E108: 0.6676 | F108: 24.78297716
B109: 35 | C109: TDC | D109: 20.6822625 | E109: 0.3225975 | F109: 22.71133948
B110: 36 | C110: Sonangol Guanambi | D110: 13.02486 | E110: 0.1939 | F110: 14.24445416
B111: 37 | C111: Alvopetro | D111: 13.0173 | E111: 0.1557 | F111: 13.99662342
B112: 38 | C112: EPG Brasil | D112: 11.3196 | E112: 0.3213 | F112: 13.34051595
B113: 39 | C113: Guto & Cacal | D113: 12.6811 | E113: 0.0403 | F113: 12.93457934
B114: 40 | C114: Vipetro | D114: 9.7486 | E114: 0.0235 | F114: 9.896410535
B115: 41 | C115: Central Resources | D115: 6.868 | E115: 0.0058 | F115: 6.904480898
B116: 42 | C116: Leros | D116: 1.5747 | E116: 0.0025 | F116: 1.590424525
C117: Total Geral | D117: =SUM(D75:D116) -> 2612371.994 | E117: =SUM(E75:E116) -> 113372.6952 | F117: =SUM(F75:F116) -> 3325464.706
B120: Tabela 8. Produção de Poços do Pré-Sal¹
B122: Nome ANP do Poço | C122: Campo | D122: Bacia | E122: Petróleo (bbl/d) | F122: Gás natural (Mm³/d) | G122: Produção Total (boe/d)
B123: 7LL15DRJS | C123: Lula | D123: Santos | E123: 31009.5718 | F123: 1104.6876 | G123: 37957.84691
B124: 7LL80DBRJS | C124: Lula | D124: Santos | E124: 30304.0364 | F124: 1031.2871 | G124: 36790.63631
B125: 8LL81DRJS | C125: Lula | D125: Santos | E125: 28713.795 | F125: 1014.4668 | G125: 35094.59842
B126: 7SPH1SPS | C126: Sapinhoá | D126: Santos | E126: 28470.2319 | F126: 973.2227 | G126: 34591.61777
B127: 9LL20DRJS | C127: Lula | D127: Santos | E127: 26340.0114 | F127: 1286.4125 | G127: 34431.30161
B128: 7SPH7DSPS | C128: Sapinhoá | D128: Santos | E128: 27781.2487 | F128: 989.7181 | G128: 34006.3875
B129: 7LL91RJS | C129: Lula | D129: Santos | E129: 26976.4546 | F129: 936.7488 | G129: 32868.42657
B130: 7LL36ARJS | C130: Lula | D130: Santos | E130: 24946.2786 | F130: 1231.8523 | G130: 32694.39552
B131: 8LL37DRJS | C131: Lula | D131: Santos | E131: 24434.4995 | F131: 1197.0096 | G131: 31963.46245
B132: 7LL51RJS | C132: Lula | D132: Santos | E132: 24345.2623 | F132: 1188.459 | G132: 31820.4436
B133: 9LL7RJS | C133: Lula | D133: Santos | E133: 25477.6935 | F133: 989.1824 | G133: 31699.46285
B134: 9LL12DRJS | C134: Lula | D134: Santos | E134: 26011.9838 | F134: 885.2484 | G134: 31580.02804
B135: 7SPH14DSPS | C135: Sapinhoá | D135: Santos | E135: 25644.7784 | F135: 925.8965 | G135: 31468.49146
B136: 7LL73DRJS | C136: Lula | D136: Santos | E136: 22323.0103 | F136: 1418.5163 | G136: 31245.20831
B137: 8LL87DRJS | C137: Lula | D137: Santos | E137: 25866.9739 | F137: 847.2123 | G137: 31195.7783
B138: 7LL22DRJS | C138: Lula | D138: Santos | E138: 25066.11 | F138: 847.472 | G138: 30396.54786
B139: 9BRSA928SPS | C139: Sapinhoá | D139: Santos | E139: 24766.3393 | F139: 867.1582 | G139: 30220.59962
B140: 7LL69RJS | C140: Lula | D140: Santos | E140: 24653.013 | F140: 794.2673 | G140: 29648.80341
B141: 7SPH4DSPS | C141: Sapinhoá | D141: Santos | E141: 24232.7171 | F141: 812.0452 | G141: 29340.32712
B142: 7SPH8SPS | C142: Sapinhoá | D142: Santos | E142: 23565.1504 | F142: 850.115 | G142: 28912.21223
B143: 7LL79DRJS | C143: Lula | D143: Santos | E143: 23982.0761 | F143: 777.2917 | G143: 28871.09321
B144: 7SPH5SPS | C144: Sapinhoá | D144: Santos | E144: 21395.1036 | F144: 1179.7412 | G144: 28815.4516
B145: 7LL61RJS | C145: Lula | D145: Santos | E145: 23859.7673 | F145: 780.2045 | G145: 28767.10537
B146: 3BRSA839ARJS | C146: Lula | D146: Santos | E146: 22013.2643 | F146: 987.58 | G146: 28224.95486
B147: 9LL19RJS | C147: Lula | D147: Santos | E147: 23640.3462 | F147: 716.2786 | G147: 28145.6025
B148: 7LL83DRJS | C148: Lula | D148: Santos | E148: 21486.5331 | F148: 1023.0329 | G148: 27921.21566
B149: 3BRSA788SPS | C149: Sapinhoá | D149: Santos | E149: 21639.327 | F149: 934.1217 | G149: 27514.77501
B150: 7SPH3SPS | C150: Sapinhoá | D150: Santos | E150: 20905.4275 | F150: 1045.8312 | G150: 27483.50704
B151: 7LPA1DSPS | C151: Lapa | D151: Santos | E151: 23180.9744 | F151: 647.6569 | G151: 27254.61325
B152: 6BRSA1222AESS | C152: Jubarte³ | D152: Campos | E152: 22021.2102 | F152: 653.3914 | G152: 26130.91796
B153: 7LL28DRJS | C153: Lula | D153: Santos | E153: 21405.6612 | F153: 734.9811 | G153: 26028.55267
B154: 7LL102DRJS | C154: Lula | D154: Santos | E154: 21263.5748 | F154: 731.33 | G154: 25863.50155
B155: 7SPH17SPS | C155: Sapinhoá | D155: Santos | E155: 20856.8888 | F155: 571.2303 | G155: 24449.81885
B156: 3BRSA865ARJS | C156: Lula | D156: Santos | E156: 19532.3666 | F156: 781.5519 | G156: 24448.17956
B157: 7JUB58DPAESS | C157: Jubarte³ | D157: Campos | E157: 20014.3418 | F157: 678.9554 | G157: 24284.84226
B158: 7LL84DRJS | C158: Lula | D158: Santos | E158: 19994.3662 | F158: 661.5739 | G158: 24155.54033
B159: 7JUB34HESS | C159: Jubarte³ | D159: Campos | E159: 19650.8269 | F159: 694.3015 | G159: 24017.85142
B160: 7LL46RJS | C160: Lula | D160: Santos | E160: 17999.3916 | F160: 806.4958 | G160: 23072.09695
B161: 7LL3DRJS | C161: Lula | D161: Santos | E161: 18896.4944 | F161: 641.6219 | G161: 22932.17424
B162: 7BFR7ESS | C162: Baleia Franca³ | D162: Campos | E162: 18334.4244 | F162: 644.8364 | G162: 22390.32284
B163: 9LL2RJS | C163: Lula | D163: Santos | E163: 16614.6066 | F163: 875.5222 | G163: 22121.47489
B164: 7LL85RJS | C164: Lula | D164: Santos | E164: 17002.6809 | F164: 780.1746 | G164: 21909.8309
B165: 7LL31DRJS | C165: Lula | D165: Santos | E165: 16732.7927 | F165: 804.0061 | G165: 21789.83831
B166: 7LL17DRJS | C166: Lula | D166: Santos | E166: 17874.3942 | F166: 597.8078 | G166: 21634.49168
B167: 7LL45DRJS | C167: Lula | D167: Santos | E167: 16472.6224 | F167: 811.2594 | G167: 21575.28989
B168: 7LL27RJS | C168: Lula | D168: Santos | E168: 16126.9803 | F168: 824.4563 | G168: 21312.65378
B169: 7BFR12PAESS | C169: Baleia Franca³ | D169: Campos | E169: 17200.4754 | F169: 638.8542 | G169: 21218.74694
B170: 7SPH16DSPS | C170: Sapinhoá | D170: Santos | E170: 16440.9841 | F170: 728.0896 | G170: 21020.52935
B171: 9BRSA908DRJS | C171: Lula | D171: Santos | E171: 15257.5456 | F171: 857.3502 | G171: 20650.11546
B172: 7JUB57DPAESS | C172: Jubarte³ | D172: Campos | E172: 16357.5812 | F172: 558.1852 | G172: 19868.46005
B173: 8LPA2DSPS | C173: Lapa | D173: Santos | E173: 16159.4984 | F173: 409.1385 | G173: 18732.90183
B174: 7LL58RJS | C174: Lula | D174: Santos | E174: 15230.4067 | F174: 486.0847 | G174: 18287.78711
B175: 7LL66RJS | C175: Lula | D175: Santos | E175: 14322.6071 | F175: 500.0334 | G175: 17467.72218
B176: 3BRSA496RJS | C176: Lula | D176: Santos | E176: 12310.9461 | F176: 669.7579 | G176: 16523.59604
B177: 3BRSA1305ARJS | C177: Mero | D177: Santos | E177: 10698.2748 | F177: 670.292 | G177: 14914.28412
B178: 7BAZ8ESS | C178: Baleia Azul³ | D178: Campos | E178: 12195.3471 | F178: 401.1313 | G178: 14718.38676
B179: 6BRSA639ESS | C179: Jubarte³ | D179: Campos | E179: 11638.5861 | F179: 385.6865 | G179: 14064.4809
B180: 7LL8HRJS | C180: Lula | D180: Santos | E180: 9620.9258 | F180: 674.3281 | G180: 13862.32143
B181: 7LL97RJS | C181: Lula | D181: Santos | E181: 10955.7976 | F181: 406.4339 | G181: 13512.18961
B182: 7JUB44ESS | C182: Jubarte³ | D182: Campos | E182: 10875.8081 | F182: 330.5936 | G182: 12955.17903
B183: 8JUB39ESS | C183: Jubarte³ | D183: Campos | E183: 9593.6214 | F183: 310.6367 | G183: 11547.46722
B184: 7MLL73DRJS | C184: Marlim Leste | D184: Campos | E184: 10309.855 | F184: 188.0136 | G184: 11492.42482
B185: 7BAZ4ESS | C185: Baleia Azul³ | D185: Campos | E185: 9561.7085 | F185: 306.2166 | G185: 11487.75273
B186: 3BRSA830RJS | C186: Lula | D186: Santos | E186: 6611.7629 | F186: 535.0076 | G186: 9976.859053
B187: 7LL60DRJS | C187: Lula | D187: Santos | E187: 7565.1487 | F187: 379.7973 | G187: 9954.001556
B188: 6BRSA806RJS | C188: Barracuda/Caratinga | D188: Campos | E188: 8405.5793 | F188: 145.6534 | G188: 9321.711512
B189: 7BAZ6ESS | C189: Baleia Azul³ | D189: Campos | E189: 7341.0748 | F189: 253.949 | G189: 8938.36576
B190: 7JUB55ESS | C190: Jubarte³ | D190: Campos | E190: 6891.3713 | F190: 218.5158 | G190: 8265.794164
B191: 3BRSA883RJS | C191: Lula | D191: Santos | E191: 6001.4415 | F191: 295.6975 | G191: 7861.322592
B192: 7SPH15DSPS | C192: Sapinhoá | D192: Santos | E192: 6243.7037 | F192: 197.7109 | G192: 7487.267696
B193: 6BRSA631DBESS | C193: Baleia Azul³ | D193: Campos | E193: 6179.8248 | F193: 189.8739 | G193: 7374.095555
B194: 7BAZ3ESS | C194: Baleia Azul³ | D194: Campos | E194: 5706.8347 | F194: 188.2675 | G194: 6891.001504
B195: 7SPH6SPS | C195: Sapinhoá | D195: Santos | E195: 4692.1865 | F195: 141.6603 | G195: 5583.202872
B196: 6BRSA770DRJS | C196: Marlim/Voador | D196: Campos | E196: 3411.134 | F196: 114.8239 | G196: 4133.354514
B197: 7BR69DARJS | C197: Barracuda/Caratinga | D197: Campos | E197: 3524.4139 | F197: 52.7349 | G197: 3856.106401
B198: 7LL63DRJS | C198: Lula | D198: Santos | E198: 2575.7336 | F198: 126.6223 | G198: 3372.163809
B199: 7CRT49RJS | C199: Barracuda/Caratinga | D199: Campos | E199: 3050.2861 | F199: 50.0892 | G199: 3365.337651
B200: 7MLL72RJS | C200: Marlim Leste | D200: Campos | E200: 2967.5261 | F200: 61.1506 | G200: 3352.151755
B201: 1BRSA1116RJS | C201: Itapu | D201: Santos | E201: 3033.0093 | F201: 36.2994 | G201: 3261.325629
B202: 6BRSA817RJS | C202: Marlim Leste | D202: Campos | E202: 2875.6693 | F202: 52.107 | G202: 3203.41243
B203: 3BRSA1017DRJS | C203: Marlim Leste | D203: Campos | E203: 2858.4587 | F203: 40.9157 | G203: 3115.810679
B204: 7JUB45ESS | C204: Jubarte³ | D204: Campos | E204: 1874.5545 | F204: 60.0649 | G204: 2252.351309
B205: 7LL106DARJS | C205: Lula | D205: Santos | E205: 1659.1665 | F205: 45.2785 | G205: 1943.959662
B206: 7PM 0017D RJS | C206: Pampo | D206: Campos | E206: 98.4915 | F206: 3.009 | G206: 117.4175383
B207: 7PRB1ESS | C207: Pirambu | D207: Campos | E207: 81.8284 | F207: 1.4006 | G207: 90.63790789
B208: Total Geral | E208: =SUM(E123:E207) -> 1356204.772 | F208: =SUM(F123:F207) -> 52287.668 | G208: =SUM(G123:G207) -> 1685084.27
B211: Tabela 9. Produção de Campos do Pré-sal¹
B213: Campo | C213: Petróleo (bbl/d) | E213: Gás natural (Mm³/d) | G213: Produção (boe/d)
C214: Pré-sal¹ | D214: Pós-sal² | E214: Pré-sal¹ | F214: Pós-sal² | G214: Pré-sal¹ | H214: Pós-sal²
B215: Lula | C215: 803478.0951 | D215: 0 | E215: 33084.38248 | F215: 0 | G215: 1011572.575 | H215: 0
B216: Sapinhoá | C216: 266634.087 | D216: 0 | E216: 10216.54099 | F216: 0 | G216: 330894.1887 | H216: 0
B217: Jubarte³ | C217: 118917.9014 | D217: 71840.27053 | E217: 3890.330852 | F217: 581.9742352 | G217: 143387.3433 | H217: 75500.77789
B218: Baleia Azul³ | C218: 40984.7899 | D218: 0 | E218: 1339.438309 | F218: 0 | G218: 49409.60237 | H218: 0
B219: Lapa | C219: 39340.47287 | D219: 0 | E219: 1056.795424 | F219: 0 | G219: 45987.5153 | H219: 0
B220: Baleia Franca³ | C220: 35534.89982 | D220: 4312.122288 | E220: 1283.690568 | F220: 44.88960677 | G220: 43609.0696 | H220: 4594.469386
... 208 more rows

Sheet 3. Movimentação de Gás Natural
B2: 3. MOVIMENTAÇÃO DE GÁS NATURAL
B6: Tabela 17. Histórico de Queima de Gás Natural nos Últimos 12 Meses (Mm³/d)
B8: Mês/Ano | C8: Mar | D8: Terra | E8: Total | F8: Aproveitamento do Gás (%)
B9: 12/2016 | C9: 3788.912003 | D9: 560.6155794 | E9: 4349.527582 | F9: 0.9610858098
B10: 01/2017 | C10: 3763.023364 | D10: 519.6712039 | E10: 4282.694568 | F10: 0.961045061
B11: 02/2017 | C11: 3464.950147 | D11: 491.0044182 | E11: 3955.954565 | F11: 0.9629032352
B12: 03/2017 | C12: 2994.804715 | D12: 471.7457155 | E12: 3466.550431 | F12: 0.9657948206
B13: 04/2017 | C13: 3069.30349 | D13: 483.9017027 | E13: 3553.205192 | F13: 0.9653619679
B14: 05/2017 | C14: 3182.146304 | D14: 525.0089423 | E14: 3707.155246 | F14: 0.9646197763
B15: 06/2017 | C15: 4025.390865 | D15: 485.8093067 | E15: 4511.200172 | F15: 0.9594075407
B16: 07/2017 | C16: 3765.296208 | D16: 460.7484906 | E16: 4226.044698 | F16: 0.9632537057
B17: 08/2017 | C17: 2981.584027 | D17: 405.8897368 | E17: 3387.473764 | F17: 0.9697114422
B18: 09/2017 | C18: 2950.461515 | D18: 425.0543357 | E18: 3375.51585 | F18: 0.9703908893
B19: 10/2017 | C19: 2976.531564 | D19: 415.8366213 | E19: 3392.368185 | F19: 0.9703992238
B20: 11/2017 | C20: 3091.535169 | D20: 475.3404497 | E20: 3566.875619 | F20: 0.9685488063
B21: 12/2017 | C21: 3449.736622 | D21: 415.9050497 | E21: 3865.641672 | F21: 0.9659032375
B24: Tabela 18. Distribuição da Movimentação de Gás Natural (Mm³/d)
B26: Bacia | C26: Consumo Interno | D26: Queima | E26: Disponível | F26: Injeção | G26: Produção
B27: Santos | C27: 3857.632355 | D27: 1798.421025 | E27: 30383.9427 | F27: 18514.81929 | G27: 54554.81536
B28: Campos | C28: 7576.458617 | D28: 1565.603567 | E28: 15156.60379 | F28: 216.7946774 | G28: 24515.46065
B29: Solimões | C29: 376.3625474 | D29: 225.018709 | E29: 5359.962816 | F29: 5736.735355 | G29: 11698.07943
B30: Parnaíba | C30: 28.39229258 | D30: 6.179315161 | E30: 7582.016539 | F30: 0 | G30: 7616.588146
B31: Camamu | C31: 105.5449677 | D31: 3.001709677 | E31: 5768.085105 | F31: 0 | G31: 5876.631783
B32: Espírito Santo | C32: 407.5699255 | D32: 41.03002677 | E32: 2051.853055 | F32: 0 | G32: 2500.453007
B33: Sergipe | C33: 196.5208142 | D33: 54.52591032 | E33: 646.0158777 | F33: 1594.479613 | G33: 2491.542215
B34: Recôncavo | C34: 113.8929023 | D34: 77.65284 | E34: 1345.538778 | F34: 630.2505358 | G34: 2167.335056
B35: Potiguar | C35: 271.0205774 | D35: 64.6227329 | E35: 667.6078874 | F35: 0 | G35: 1003.251198
B36: Alagoas | C36: 2.827312581 | D36: 21.67305935 | E36: 797.813959 | F36: 3.387741935 | G36: 825.7020729
B37: Ceará | C37: 0.02796774194 | D37: 7.34358 | E37: 78.94169419 | F37: 0 | G37: 86.31324194
B38: Tucano Sul | C38: -1e-38 | D38: 0.569196129 | E38: 35.94817419 | F38: 0 | G38: 36.51737032
B39: Total Geral | C39: =SUM(C27:C38) -> 12936.25028 | D39: =SUM(D27:D38) -> 3865.641672 | E39: 69874.33037 | F39: 26696.46721 | G39: 113372.6895
B42: Tabela 19. Os 20 Campos que Mais Queimaram Gás Natural Neste Mês
B44: Nº | C44: Bacia | D44: Campo | E44: Localização | F44: Operador | G44: Queima de Gás (Mm³/d)
B45: 1 | C45: Santos | D45: Lula | E45: Mar | F45: Petrobras | G45: 889.9378013
B46: 2 | C46: Santos | D46: Mero | E46: Mar | F46: Petrobras | G46: 670.292
B47: 3 | C47: Campos | D47: Marlim | E47: Mar | F47: Petrobras | G47: 429.913229
B48: 4 | C48: Campos | D48: Roncador | E48: Mar | F48: Petrobras | G48: 254.0239652
B49: 5 | C49: Campos | D49: Marlim Sul | E49: Mar | F49: Petrobras | G49: 188.9679681
B50: 6 | C50: Santos | D50: Sapinhoá | E50: Mar | F50: Petrobras | G50: 162.9565152
B51: 7 | C51: Campos | D51: Jubarte³ | E51: Mar | F51: Petrobras | G51: 156.5705439
B52: 8 | C52: Solimões | D52: Leste Do Urucu | E52: Terra | F52: Petrobras | G52: 137.9476987
B53: 9 | C53: Solimões | D53: Rio Urucu | E53: Terra | F53: Petrobras | G53: 85.02383355
B54: 10 | C54: Campos | D54: Marlim Leste | E54: Mar | F54: Petrobras | G54: 80.19127516
B55: 11 | C55: Campos | D55: Barracuda | E55: Mar | F55: Petrobras | G55: 52.76434419
B56: 12 | C56: Campos | D56: Albacora Leste | E56: Mar | F56: Petrobras | G56: 48.69724161
B57: 13 | C57: Campos | D57: Tartaruga Verde | E57: Mar | F57: Petrobras | G57: 38.70280645
B58: 14 | C58: Campos | D58: Albacora | E58: Mar | F58: Petrobras | G58: 36.35862871
B59: 15 | C59: Santos | D59: Itapu | E59: Mar | F59: Petrobras | G59: 33.91716129
B60: 16 | C60: Campos | D60: Baleia Azul³ | E60: Mar | F60: Petrobras | G60: 33.76371032
B61: 17 | C61: Campos | D61: Baleia Franca³ | E61: Mar | F61: Petrobras | G61: 30.94186258
B62: 18 | C62: Sergipe | D62: Piranema | E62: Mar | F62: Petrobras | G62: 30.25074194
B63: 19 | C63: Santos | D63: Lapa | E63: Mar | F63: Petrobras | G63: 24.32629032
B64: 20 | C64: Campos | D64: Caratinga | E64: Mar | F64: Petrobras | G64: 23.16933161
